Workbook

Sheet 2(定)
A1: 附件2
A2: 2019年全区公共租赁住房分配情况通报表
A3: （截至2019年5月25日）
A4: 序号 | B4: 城市 | C4: 总套数（套） | E4: 截至2019年5月已分配套数（套） | G4: 分配比例 | I4: 2018年12月份正在入住数 | K4: 第一批盘活套数 | L4: 第二批盘活套数
D5: 计划内开工套数（套） | F5: 其中：2019年1-5月新增分配套数
A8: 编号栏 | C8: 1 | D8: 2 | E8: 3 | F8: 4 | G8: 5=（3/2）*100% | K8: 3625 | L8: 5392
A9: 合计 | C9: =SUM(C10:C25) -> 474557 | D9: =SUM(D10:D25) -> 472900 | E9: =SUM(E10:E25) -> 434121 | F9: =SUM(F10:F25) -> 433463 | G9: =E9/D9 -> 91.80% | I9: 396080
A10: 1 | B10: 南宁市 | C10: 81218 | D10: 79452 | E10: 73776 | F10: 73776 | G10: =(E10/D10) -> 92.86% | I10: 73471
A11: 2 | B11: 柳州市 | C11: =50121-L11 -> 47159 | D11: =50121-L11 -> 47159 | E11: 41476 | F11: 41476 | G11: 87.95% | I11: 44082 | L11: 2962
A12: 3 | B12: 桂林市 | C12: =41161-L12 -> 39381 | D12: =41161-L12 -> 39381 | E12: 35321 | F12: 35321 | G12: 89.69% | I12: 35243 | L12: 1780
A13: 4 | B13: 梧州市 | C13: =D13 -> 38529 | D13: =39382-450-L13 -> 38529 | E13: 34978 | F13: 34978 | G13: 90.78% | I13: 34802 | K13: 450 | L13: 403
A14: 5 | B14: 北海市 | C14: 19100 | D14: 19100 | E14: 17858 | F14: 17858 | G14: 93.50% | I14: 17815
A15: 6 | B15: 防城港市 | C15: 10118 | D15: =10213-K15 -> 10118 | E15: 9269 | F15: 9269 | G15: 91.61% | I15: 9318 | K15: 95
A16: 7 | B16: 钦州市 | C16: 29527 | D16: 29527 | E16: 26285 | F16: 26285 | G16: 89.02% | I16: 27056
A17: 8 | B17: 贵港市 | C17: 30434 | D17: 30420 | E17: 28163 | F17: 28163 | G17: 92.58% | I17: 28270
A18: 9 | B18: 玉林市 | C18: 24704 | D18: 24704 | E18: 22891 | F18: 22891 | G18: 92.66%
A19: 10 | B19: 百色市 | C19: 46017 | D19: =46205-K19 -> 46205 | E19: 44507 | F19: 44507 | G19: 96.33%
A20: 11 | B20: 贺州市 | C20: =D20+18+1 -> 20300 | D20: =20281-K20-L20 -> 20281 | E20: 17836 | F20: 17836 | G20: 87.94%
A21: 12 | B21: 河池市 | C21: =D21 -> 38063 | D21: =38642-579 -> 38063 | E21: 36308 | F21: 36308 | G21: 95.39% | I21: 36486 | K21: 579
A22: 13 | B22: 来宾市 | C22: 29236 | D22: 29236 | E22: 27668 | F22: 27668 | G22: 94.64% | I22: 27663
A23: 14 | B23: 崇左市 | C23: =19614-1554-3 -> 18057 | D23: =19565-1554 -> 18011 | E23: 17127 | F23: 17127 | G23: 95.09% | I23: 17039 | K23: 1554
A24: 15 | B24: 区直 | C24: 2467 | D24: 2467 | E24: 411 | G24: 16.66% | I24: 411
A25: 16 | B25: 宁铁 | C25: 247 | D25: 247 | E25: 247 | F25: 0 | G25: 100.00% | I25: 247
